[Event "*** Titled Tuesday 3|2 Blitz"]
[Site "Chess.com"]
[Date "2014.12.30"]
[Round "6"]
[White "WanderingPuppet"]
[Black "kharposh"]
[Result "0-1"]
[WhiteElo "2043"]
[BlackElo "2012"]
[TimeControl "180+2"]
[EndTime "12:17:18 PST"]
[Termination "kharposh won on time"]

1. e4 {[%clk 0:03:00]} 1... b6 {[%clk 0:02:55.5]} 2. d4 {[%clk 0:03:00.9]} 2...
Bb7 {[%clk 0:02:56.5]} 3. Bd3 {[%clk 0:03:02.6]} 3... e6 {[%clk 0:02:57.3]} 4.
Qe2 {[%clk 0:03:04.1]} 4... Nf6 {[%clk 0:02:56.6]} 5. Nf3 {[%clk 0:03:04.1]}
5... Be7 {[%clk 0:02:56.3]} 6. e5 {[%clk 0:03:04.7]} 6... Nd5 {[%clk 0:02:56.6]}
7. a3 {[%clk 0:03:06.4]} 7... c5 {[%clk 0:02:56.4]} 8. c4 {[%clk 0:03:05]} 8...
Nc7 {[%clk 0:02:56.7]} 9. dxc5 {[%clk 0:03:04.6]} 9... bxc5 {[%clk 0:02:52]} 10.
O-O {[%clk 0:03:05.3]} 10... d5 {[%clk 0:02:51.2]} 11. exd6 {[%clk 0:03:05.9]}
11... Qxd6 {[%clk 0:02:50.1]} 12. Nc3 {[%clk 0:03:01]} 12... Nc6 {[%clk
0:02:41.8]} 13. Ne4 {[%clk 0:03:00.6]} 13... Qd8 {[%clk 0:02:40]} 14. Rd1 {[%clk
0:03:01.5]} 14... Nd4 {[%clk 0:02:40.5]} 15. Nxd4 {[%clk 0:03:01.8]} 15... cxd4
{[%clk 0:02:41.4]} 16. Bf4 {[%clk 0:02:57.1]} 16... f6 {[%clk 0:02:05]} 17. Qh5+
{[%clk 0:02:56.7]} 17... Kf8 {[%clk 0:02:03.6]} 18. Qa5 {[%clk 0:02:39.1]} 18...
e5 {[%clk 0:02:00.1]} 19. Bd2 {[%clk 0:02:27.1]} 19... Ne6 {[%clk 0:01:59.6]}
20. Qa4 {[%clk 0:02:21.4]} 20... Bxe4 {[%clk 0:01:54.3]} 21. Bxe4 {[%clk
0:02:21.2]} 21... Nc5 {[%clk 0:01:55]} 22. Qc6 {[%clk 0:02:17.8]} 22... Rc8
{[%clk 0:01:49.7]} 23. Qd5 {[%clk 0:02:18.4]} 23... Nxe4 {[%clk 0:01:38.5]} 24.
Qxe4 {[%clk 0:02:18.4]} 24... Rxc4 {[%clk 0:01:35.5]} 25. Rac1 {[%clk
0:02:19.4]} 25... Rxc1 {[%clk 0:01:34.5]} 26. Rxc1 {[%clk 0:02:21.3]} 26... Kf7
{[%clk 0:01:31.5]} 27. Qb7 {[%clk 0:02:21.5]} 27... Qb6 {[%clk 0:01:29.4]} 28.
Rc7 {[%clk 0:02:14.1]} 28... Qxb7 {[%clk 0:01:26.2]} 29. Rxb7 {[%clk 0:02:15.2]}
29... Rc8 {[%clk 0:01:24.9]} 30. g4 {[%clk 0:02:13.4]} 30... Ke6 {[%clk
0:01:24.8]} 31. Ba5 {[%clk 0:01:55]} 31... Rc2 {[%clk 0:01:15.9]} 32. Rxa7
{[%clk 0:01:45.8]} 32... Rxb2 {[%clk 0:01:14.5]} 33. Ra6+ {[%clk 0:01:43.3]}
33... Kd5 {[%clk 0:01:13.4]} 34. Bc7 {[%clk 0:01:42.4]} 34... d3 {[%clk
0:01:06.3]} 35. Ra5+ {[%clk 0:01:43.6]} 35... Bc5 {[%clk 0:01:03.8]} 0-1

[Event "*** Titled Tuesday 3|2 Blitz"]
[Site "Chess.com"]
[Date "2014.12.30"]
[Round "6"]
[White "162a54f5d"]
[Black "rhungaski"]
[Result "0-1"]
[WhiteElo "2298"]
[BlackElo "2414"]
[TimeControl "180+2"]
[EndTime "12:17:38 PST"]
[Termination "rhungaski won by checkmate"]

1. d4 {[%clk 0:03:00]} 1... Nf6 {[%clk 0:02:57.6]} 2. c4 {[%clk 0:03:01.5]} 2...
c5 {[%clk 0:02:59.2]} 3. Nf3 {[%clk 0:02:51.2]} 3... cxd4 {[%clk 0:02:59.9]} 4.
Nxd4 {[%clk 0:02:52]} 4... e5 {[%clk 0:03:00.8]} 5. Nb5 {[%clk 0:02:52.7]} 5...
d5 {[%clk 0:03:01.8]} 6. cxd5 {[%clk 0:02:53.1]} 6... Bc5 {[%clk 0:02:58.2]} 7.
N5c3 {[%clk 0:02:53.4]} 7... O-O {[%clk 0:02:58.2]} 8. g3 {[%clk 0:02:54.1]}
8... Re8 {[%clk 0:02:57]} 9. Bg2 {[%clk 0:02:52]} 9... a6 {[%clk 0:02:54.9]} 10.
O-O {[%clk 0:02:50.1]} 10... e4 {[%clk 0:02:52.1]} 11. Na3 {[%clk 0:02:49.6]}
11... Bf5 {[%clk 0:02:48.4]} 12. Nc2 {[%clk 0:02:50.2]} 12... Nbd7 {[%clk
0:02:45.7]} 13. Be3 {[%clk 0:02:47.6]} 13... Bd6 {[%clk 0:02:45.3]} 14. Nd4
{[%clk 0:02:45.9]} 14... Bg6 {[%clk 0:02:44.7]} 15. Rc1 {[%clk 0:02:45]} 15...
Rc8 {[%clk 0:02:38.9]} 16. a3 {[%clk 0:02:31.4]} 16... Ng4 {[%clk 0:02:28.9]}
17. Nc2 {[%clk 0:01:41.3]} 17... h5 {[%clk 0:02:22.9]} 18. Bd4 {[%clk
0:01:36.4]} 18... h4 {[%clk 0:02:19.6]} 19. Ne3 {[%clk 0:01:35.4]} 19... Nxh2
{[%clk 0:02:15.8]} 20. Kxh2 {[%clk 0:01:04.2]} 20... hxg3+ {[%clk 0:02:16.4]}
21. Kg1 {[%clk 0:01:04.1]} 21... Qh4 {[%clk 0:02:14]} 22. fxg3 {[%clk
0:01:04.2]} 22... Bxg3 {[%clk 0:02:15.9]} 23. Rf5 {[%clk 0:01:01]} 23... Bh2+
{[%clk 0:01:53]} 24. Kh1 {[%clk 0:00:54.8]} 24... Bf4+ {[%clk 0:01:45.1]} 25.
Kg1 {[%clk 0:00:56]} 25... Qh2+ {[%clk 0:01:17.8]} 26. Kf1 {[%clk 0:00:55.2]}
26... Bxe3 {[%clk 0:01:18.9]} 27. Bxe3 {[%clk 0:00:53.9]} 27... Bxf5 {[%clk
0:01:19.9]} 28. Qd4 {[%clk 0:00:50.9]} 28... Bh3 {[%clk 0:01:09.4]} 29. Bxh3
{[%clk 0:00:52.1]} 29... Qxh3+ {[%clk 0:01:09.9]} 30. Ke1 {[%clk 0:00:53.6]}
30... Ne5 {[%clk 0:01:03.5]} 31. d6 {[%clk 0:00:54.6]} 31... Rcd8 {[%clk
0:00:23.2]} 32. b3 {[%clk 0:00:51.4]} 32... Nc6 {[%clk 0:00:21.4]} 33. Qc5
{[%clk 0:00:51.1]} 33... Re5 {[%clk 0:00:22]} 34. Qb6 {[%clk 0:00:39.9]} 34...
Rxd6 {[%clk 0:00:22.5]} 35. Rd1 {[%clk 0:00:38.6]} 35... Qh1+ {[%clk 0:00:20.8]}
36. Bg1 {[%clk 0:00:39.5]} 36... e3 {[%clk 0:00:19.4]} 37. Rxd6 {[%clk
0:00:28.4]} 37... Qxg1# {[%clk 0:00:19.8]} 0-1

[Event "*** Titled Tuesday 3|2 Blitz"]
[Site "Chess.com"]
[Date "2014.12.30"]
[Round "6"]
[White "LADIESGET2KNOWME"]
[Black "Imre91"]
[Result "0-1"]
[WhiteElo "2228"]
[BlackElo "2540"]
[TimeControl "180+2"]
[EndTime "12:17:39 PST"]
[Termination "Imre91 won by resignation"]

1. d4 {[%clk 0:03:00]} 1... d5 {[%clk 0:02:58]} 2. Nc3 {[%clk 0:03:00.1]} 2...
Nf6 {[%clk 0:02:58.1]} 3. Bg5 {[%clk 0:03:00.8]} 3... Ne4 {[%clk 0:02:58.1]} 4.
Nxe4 {[%clk 0:03:01.2]} 4... dxe4 {[%clk 0:02:59.6]} 5. e3 {[%clk 0:03:03.1]}
5... c6 {[%clk 0:03:00.6]} 6. c3 {[%clk 0:03:03.8]} 6... Bf5 {[%clk 0:03:01.6]}
7. Bc4 {[%clk 0:03:03.4]} 7... Qb6 {[%clk 0:03:00.6]} 8. Qb3 {[%clk 0:03:02.5]}
8... e6 {[%clk 0:03:00.1]} 9. Ne2 {[%clk 0:02:59.4]} 9... h6 {[%clk 0:03:00]}
10. Bh4 {[%clk 0:02:58.5]} 10... Nd7 {[%clk 0:02:56.9]} 11. O-O {[%clk
0:02:45.9]} 11... Bd6 {[%clk 0:02:55]} 12. Bg3 {[%clk 0:02:45.4]} 12... Be7
{[%clk 0:02:55.5]} 13. h3 {[%clk 0:02:28.4]} 13... O-O {[%clk 0:02:55.3]} 14.
Nf4 {[%clk 0:02:06.8]} 14... a5 {[%clk 0:02:45.2]} 15. a4 {[%clk 0:01:54]} 15...
Qxb3 {[%clk 0:02:39.7]} 16. Bxb3 {[%clk 0:01:54.7]} 16... Nf6 {[%clk 0:02:37.8]}
17. Bc2 {[%clk 0:01:33.9]} 17... Rfd8 {[%clk 0:02:37]} 18. c4 {[%clk 0:01:29.1]}
18... c5 {[%clk 0:02:36.4]} 19. Rfd1 {[%clk 0:01:23.2]} 19... cxd4 {[%clk
0:02:29.5]} 20. exd4 {[%clk 0:01:25.1]} 20... Rac8 {[%clk 0:02:30.4]} 21. b3
{[%clk 0:01:24.1]} 21... Bb4 {[%clk 0:02:19.9]} 22. Ne2 {[%clk 0:01:24.6]} 22...
g6 {[%clk 0:02:20.1]} 23. Bf4 {[%clk 0:01:19.3]} 23... g5 {[%clk 0:02:17.4]} 24.
Bd2 {[%clk 0:01:20]} 24... e3 {[%clk 0:02:12]} 25. Bxf5 {[%clk 0:00:44]} 25...
exd2 {[%clk 0:02:12.5]} 26. Bd3 {[%clk 0:00:38.5]} 26... Kg7 {[%clk 0:01:58.4]}
27. f3 {[%clk 0:00:38.2]} 27... Nh5 {[%clk 0:01:58.8]} 28. g3 {[%clk 0:00:34.2]}
28... f5 {[%clk 0:01:58.6]} 29. Kf2 {[%clk 0:00:35.2]} 29... f4 {[%clk 0:01:59]}
30. gxf4 {[%clk 0:00:33.3]} 30... Nxf4 {[%clk 0:01:58.8]} 31. Nxf4 {[%clk
0:00:33.3]} 31... gxf4 {[%clk 0:01:59.5]} 32. Rg1+ {[%clk 0:00:34.3]} 32... Kf7
{[%clk 0:02:01]} 33. d5 {[%clk 0:00:12.8]} 33... exd5 {[%clk 0:02:01.2]} 34.
cxd5 {[%clk 0:00:14.7]} 34... Bc5+ {[%clk 0:02:00.2]} 35. Ke2 {[%clk 0:00:09.3]}
35... Re8+ {[%clk 0:02:00]} 36. Be4 {[%clk 0:00:08.8]} 36... Bxg1 {[%clk
0:01:59]} 37. Rxg1 {[%clk 0:00:10.3]} 37... Rc1 {[%clk 0:02:00.2]} 38. Rd1
{[%clk 0:00:11.4]} 38... Rxd1 {[%clk 0:02:01.4]} 39. Kxd1 {[%clk 0:00:12.4]}
39... Kf6 {[%clk 0:02:03.3]} 40. Kxd2 {[%clk 0:00:13.5]} 40... Ke5 {[%clk
0:02:04.9]} 41. Kd3 {[%clk 0:00:12.6]} 41... Rc8 {[%clk 0:02:06.4]} 42. Kd2
{[%clk 0:00:09.2]} 42... b6 {[%clk 0:02:06.7]} 43. Kd3 {[%clk 0:00:10.3]} 43...
Rc1 {[%clk 0:02:03.7]} 44. Kd2 {[%clk 0:00:10.7]} 44... Rh1 {[%clk 0:02:04.7]}
45. Kd3 {[%clk 0:00:12.3]} 45... Rxh3 {[%clk 0:02:05.5]} 46. Kc4 {[%clk
0:00:13.9]} 46... Rh2 {[%clk 0:02:02.2]} 47. Kb5 {[%clk 0:00:14.2]} 47... Rb2
{[%clk 0:02:03.7]} 48. Kxb6 {[%clk 0:00:13.7]} 48... Rxb3+ {[%clk 0:02:04.7]}
49. Kxa5 {[%clk 0:00:13.7]} 49... h5 {[%clk 0:02:05.1]} 50. d6 {[%clk
0:00:08.4]} 50... Kxd6 {[%clk 0:02:05.8]} 51. Bf5 {[%clk 0:00:09.9]} 51... h4
{[%clk 0:02:06.8]} 52. Ka6 {[%clk 0:00:10.3]} 52... Rxf3 {[%clk 0:02:07]} 53. a5
{[%clk 0:00:11.6]} 53... h3 {[%clk 0:02:08.3]} 54. Be4 {[%clk 0:00:11.4]} 54...
Re3 {[%clk 0:02:09.2]} 0-1

[Event "*** Titled Tuesday 3|2 Blitz"]
[Site "Chess.com"]
[Date "2014.12.30"]
[Round "6"]
[White "AungTZ"]
[Black "ChessWarrior7197"]
[Result "0-1"]
[WhiteElo "2006"]
[BlackElo "2007"]
[TimeControl "180+2"]
[EndTime "12:17:39 PST"]
[Termination "ChessWarrior7197 won by resignation"]

1. e4 {[%clk 0:03:00]} 1... e5 {[%clk 0:02:58.7]} 2. Nf3 {[%clk 0:02:58.9]} 2...
Nc6 {[%clk 0:02:57.8]} 3. d4 {[%clk 0:02:59.4]} 3... exd4 {[%clk 0:02:58.3]} 4.
Nxd4 {[%clk 0:02:57.9]} 4... Bb4+ {[%clk 0:02:59.2]} 5. c3 {[%clk 0:02:55.7]}
5... Bc5 {[%clk 0:03:00.2]} 6. Be3 {[%clk 0:02:56.6]} 6... Bb6 {[%clk
0:03:00.5]} 7. Be2 {[%clk 0:02:56.1]} 7... Nf6 {[%clk 0:02:59.6]} 8. Nd2 {[%clk
0:02:56.6]} 8... O-O {[%clk 0:02:57.8]} 9. O-O {[%clk 0:02:57.1]} 9... d5 {[%clk
0:02:59]} 10. Nxc6 {[%clk 0:02:54]} 10... bxc6 {[%clk 0:03:00.1]} 11. Bg5 {[%clk
0:02:54.9]} 11... h6 {[%clk 0:02:58.8]} 12. Bxf6 {[%clk 0:02:52.1]} 12... Qxf6
{[%clk 0:02:59]} 13. exd5 {[%clk 0:02:53.1]} 13... cxd5 {[%clk 0:02:59.5]} 14.
Bf3 {[%clk 0:02:54.6]} 14... c6 {[%clk 0:02:59.3]} 15. Nb3 {[%clk 0:02:50.7]}
15... Ba6 {[%clk 0:02:55.4]} 16. Re1 {[%clk 0:02:51.1]} 16... Rfe8 {[%clk
0:02:55.5]} 17. Qd2 {[%clk 0:02:51.8]} 17... Rad8 {[%clk 0:02:48.3]} 18. a4
{[%clk 0:02:50.1]} 18... Bc4 {[%clk 0:02:47.1]} 19. Nd4 {[%clk 0:02:33.9]} 19...
c5 {[%clk 0:02:47.4]} 20. Nc2 {[%clk 0:02:34.5]} 20... Bc7 {[%clk 0:02:45.8]}
21. Rxe8+ {[%clk 0:02:12.6]} 21... Rxe8 {[%clk 0:02:45.1]} 22. Re1 {[%clk
0:02:04.2]} 22... Rxe1+ {[%clk 0:02:33.2]} 23. Nxe1 {[%clk 0:02:04.6]} 23... Bf4
{[%clk 0:02:26.3]} 24. Qd1 {[%clk 0:02:00.3]} 24... d4 {[%clk 0:02:13.6]} 25.
cxd4 {[%clk 0:02:00.3]} 25... Qxd4 {[%clk 0:02:09.6]} 26. Qxd4 {[%clk
0:01:54.5]} 26... cxd4 {[%clk 0:02:10.8]} 27. Be4 {[%clk 0:01:50.4]} 27... g6
{[%clk 0:02:02.3]} 28. Bd3 {[%clk 0:01:49.9]} 28... Bb3 {[%clk 0:02:01.3]} 29.
Bb5 {[%clk 0:01:48]} 29... f5 {[%clk 0:01:56.9]} 30. Nd3 {[%clk 0:01:46.2]}
30... Bd6 {[%clk 0:01:56.2]} 31. g3 {[%clk 0:01:43.3]} 31... Kf7 {[%clk
0:01:56.6]} 32. f4 {[%clk 0:01:43.4]} 32... g5 {[%clk 0:01:55.2]} 33. Kf2 {[%clk
0:01:44.3]} 33... Ke6 {[%clk 0:01:55.3]} 34. Ke2 {[%clk 0:01:42.6]} 34... Kd5
{[%clk 0:01:54.1]} 35. fxg5 {[%clk 0:01:43.5]} 35... hxg5 {[%clk 0:01:54.6]} 36.
h4 {[%clk 0:01:44.4]} 36... Bxg3 {[%clk 0:01:41.5]} 37. hxg5 {[%clk 0:01:43.7]}
37... Kd6 {[%clk 0:01:34.4]} 38. Kf3 {[%clk 0:01:37.4]} 38... Bh2 {[%clk
0:01:34.7]} 39. Kg2 {[%clk 0:01:36.7]} 39... Be5 {[%clk 0:01:35]} 40. Nxe5
{[%clk 0:01:35.8]} 40... Kxe5 {[%clk 0:01:36.2]} 41. Kf3 {[%clk 0:01:37.2]}
41... Bf7 {[%clk 0:01:37.2]} 42. b4 {[%clk 0:01:32.8]} 42... Bh5+ {[%clk
0:01:36.1]} 43. Kf2 {[%clk 0:01:31.6]} 43... Kf4 {[%clk 0:01:35.9]} 44. Bd3
{[%clk 0:01:25.5]} 44... Kxg5 {[%clk 0:01:35.9]} 45. b5 {[%clk 0:01:27.4]} 45...
Bf7 {[%clk 0:01:31]} 46. a5 {[%clk 0:01:26.7]} 46... Bd5 {[%clk 0:01:28.7]} 47.
Bf1 {[%clk 0:01:22.6]} 47... Kf6 {[%clk 0:01:18.5]} 48. Bg2 {[%clk 0:01:21.8]}
48... Ke5 {[%clk 0:01:07.4]} 49. b6 {[%clk 0:01:18.1]} 49... axb6 {[%clk
0:01:06.9]} 50. a6 {[%clk 0:01:19]} 50... d3 {[%clk 0:01:04.8]} 51. Bxd5 {[%clk
0:01:18.4]} 51... Kxd5 {[%clk 0:00:57.2]} 52. a7 {[%clk 0:01:18.9]} 52... Kd4
{[%clk 0:00:58]} 53. a8=Q {[%clk 0:01:18.6]} 53... Kc3 {[%clk 0:00:59.3]} 54.
Qa5+ {[%clk 0:01:18.3]} 54... bxa5 {[%clk 0:00:59.2]} 0-1

[Event "*** Titled Tuesday 3|2 Blitz"]
[Site "Chess.com"]
[Date "2014.12.30"]
[Round "6"]
[White "DARIO555"]
[Black "MattyDPerrine"]
[Result "1-0"]
[WhiteElo "2202"]
[BlackElo "1995"]
[TimeControl "180+2"]
[EndTime "12:17:52 PST"]
[Termination "DARIO555 won by checkmate"]

1. e4 {[%clk 0:02:42.4]} 1... c5 {[%clk 0:02:58.4]} 2. Nc3 {[%clk 0:02:43.1]}
2... Nc6 {[%clk 0:02:58.4]} 3. f4 {[%clk 0:02:44.7]} 3... g6 {[%clk 0:02:57.4]}
4. Nf3 {[%clk 0:02:46.2]} 4... Bg7 {[%clk 0:02:56.8]} 5. Bb5 {[%clk 0:02:47.8]}
5... Nd4 {[%clk 0:02:58.4]} 6. a4 {[%clk 0:02:48]} 6... a6 {[%clk 0:02:51.8]} 7.
Bc4 {[%clk 0:02:48.7]} 7... e6 {[%clk 0:02:52.5]} 8. d3 {[%clk 0:02:47.2]} 8...
Ne7 {[%clk 0:02:51.3]} 9. Nxd4 {[%clk 0:02:48]} 9... cxd4 {[%clk 0:02:51.6]} 10.
Ne2 {[%clk 0:02:49.1]} 10... d5 {[%clk 0:02:50.7]} 11. Bb3 {[%clk 0:02:49.9]}
11... Qa5+ {[%clk 0:02:42.3]} 12. Bd2 {[%clk 0:02:49.5]} 12... Qb6 {[%clk
0:02:43.2]} 13. a5 {[%clk 0:02:41.3]} 13... Qc5 {[%clk 0:02:38]} 14. Ba4+ {[%clk
0:02:22.4]} 14... Bd7 {[%clk 0:02:28]} 15. Bxd7+ {[%clk 0:02:22]} 15... Kxd7
{[%clk 0:02:29.9]} 16. c3 {[%clk 0:02:11.9]} 16... dxc3 {[%clk 0:02:17.5]} 17.
bxc3 {[%clk 0:01:50.5]} 17... dxe4 {[%clk 0:01:21.7]} 18. dxe4 {[%clk
0:01:50.5]} 18... Kc7 {[%clk 0:01:18.1]} 19. Qc1 {[%clk 0:01:09.3]} 19... Qc4
{[%clk 0:00:36.6]} 20. Qb1 {[%clk 0:00:42.2]} 20... Rad8 {[%clk 0:00:27.8]} 21.
Qb6+ {[%clk 0:00:28.4]} 21... Kc8 {[%clk 0:00:27.1]} 22. Rb1 {[%clk 0:00:28.3]}
22... Rd7 {[%clk 0:00:18.5]} 23. Be3 {[%clk 0:00:20.6]} 23... Nc6 {[%clk
0:00:15.1]} 24. Kf2 {[%clk 0:00:18]} 24... Qxe4 {[%clk 0:00:14.4]} 25. Rhd1
{[%clk 0:00:15.8]} 25... Rhd8 {[%clk 0:00:13.4]} 26. Nd4 {[%clk 0:00:09.7]}
26... Nxd4 {[%clk 0:00:11.5]} 27. cxd4 {[%clk 0:00:10.1]} 27... Rd6 {[%clk
0:00:09.2]} 28. Qa7 {[%clk 0:00:07.5]} 28... Kd7 {[%clk 0:00:05]} 29. Rxb7+
{[%clk 0:00:07.4]} 29... Ke8 {[%clk 0:00:04.9]} 30. Re7+ {[%clk 0:00:07.6]}
30... Kf8 {[%clk 0:00:05.9]} 31. Rxf7+ {[%clk 0:00:09]} 31... Kg8 {[%clk
0:00:06.3]} 32. Rxg7+ {[%clk 0:00:10.3]} 32... Kh8 {[%clk 0:00:07.1]} 33. Rxh7+
{[%clk 0:00:11.7]} 33... Kg8 {[%clk 0:00:09]} 34. Qf7# {[%clk 0:00:13.2]} 1-0

[Event "*** Titled Tuesday 3|2 Blitz"]
[Site "Chess.com"]
[Date "2014.12.30"]
[Round "6"]
[White "FlySooHigh"]
[Black "LuckyTiger"]
[Result "0-1"]
[WhiteElo "2359"]
[BlackElo "2518"]
[TimeControl "180+2"]
[EndTime "12:17:54 PST"]
[Termination "LuckyTiger won on time"]

1. e4 {[%clk 0:03:00]} 1... e6 {[%clk 0:02:58.5]} 2. d4 {[%clk 0:03:00.4]} 2...
d5 {[%clk 0:03:00.1]} 3. e5 {[%clk 0:03:01.4]} 3... c5 {[%clk 0:03:00.6]} 4. c3
{[%clk 0:03:01.3]} 4... Qb6 {[%clk 0:03:01.6]} 5. Nf3 {[%clk 0:03:01.1]} 5...
Nc6 {[%clk 0:03:02.3]} 6. a3 {[%clk 0:03:01.8]} 6... c4 {[%clk 0:03:03.4]} 7. g3
{[%clk 0:03:01.8]} 7... f6 {[%clk 0:03:04.4]} 8. exf6 {[%clk 0:02:55.4]} 8...
Nxf6 {[%clk 0:03:06.3]} 9. Bg2 {[%clk 0:02:56.2]} 9... Bd6 {[%clk 0:03:05.9]}
10. Qe2 {[%clk 0:02:54.4]} 10... O-O {[%clk 0:03:05.9]} 11. Ne5 {[%clk
0:02:42.4]} 11... Bxe5 {[%clk 0:02:36.4]} 12. dxe5 {[%clk 0:02:44.3]} 12... Nd7
{[%clk 0:02:23.2]} 13. Be3 {[%clk 0:02:31.9]} 13... Qb3 {[%clk 0:02:14.5]} 14.
f4 {[%clk 0:02:30]} 14... Ndxe5 {[%clk 0:02:11.2]} 15. fxe5 {[%clk 0:02:22.6]}
15... Nxe5 {[%clk 0:02:13.1]} 16. Nd2 {[%clk 0:01:17.9]} 16... Qc2 {[%clk
0:02:13.8]} 17. Bc5 {[%clk 0:00:55.2]} 17... Nd3+ {[%clk 0:02:09.1]} 18. Qxd3
{[%clk 0:00:56.1]} 18... Qxd3 {[%clk 0:02:11]} 19. Bxf8 {[%clk 0:00:56.6]} 19...
Kxf8 {[%clk 0:02:08.6]} 20. O-O-O {[%clk 0:00:57.3]} 20... Bd7 {[%clk
0:01:55.6]} 21. Rhf1+ {[%clk 0:00:50.1]} 21... Kg8 {[%clk 0:01:55.7]} 22. Rf3
{[%clk 0:00:40.8]} 22... Qg6 {[%clk 0:01:53.8]} 23. b3 {[%clk 0:00:27.8]} 23...
cxb3 {[%clk 0:01:50]} 24. Nxb3 {[%clk 0:00:29.7]} 24... Ba4 {[%clk 0:01:40.8]}
25. Kb2 {[%clk 0:00:30.6]} 25... Qh5 {[%clk 0:01:27.4]} 26. Rd2 {[%clk
0:00:20.9]} 26... Qxh2 {[%clk 0:01:08.1]} 27. Nc5 {[%clk 0:00:17.3]} 27... Bc6
{[%clk 0:01:02.3]} 28. Re3 {[%clk 0:00:10.1]} 28... d4 {[%clk 0:00:53.2]} 29.
cxd4 {[%clk 0:00:10.5]} 29... Bxg2 {[%clk 0:00:54.2]} 30. Ree2 {[%clk
0:00:11.7]} 30... Qxg3 {[%clk 0:00:52.9]} 31. Rxg2 {[%clk 0:00:13.4]} 31... Qd6
{[%clk 0:00:54.5]} 32. Rge2 {[%clk 0:00:12.5]} 32... Re8 {[%clk 0:00:55.2]} 33.
Ne4 {[%clk 0:00:12.8]} 33... Qb6+ {[%clk 0:00:56]} 34. Ka2 {[%clk 0:00:14.1]}
34... h6 {[%clk 0:00:57.2]} 35. Rg2 {[%clk 0:00:14.5]} 35... Kh8 {[%clk
0:00:57]} 36. Rge2 {[%clk 0:00:13.8]} 36... Qc6 {[%clk 0:00:56.9]} 37. Kb2
{[%clk 0:00:12]} 37... b6 {[%clk 0:00:56.2]} 38. Nc3 {[%clk 0:00:12.1]} 38...
Rc8 {[%clk 0:00:56.5]} 39. Rd3 {[%clk 0:00:13]} 39... b5 {[%clk 0:00:57.3]} 40.
Re5 {[%clk 0:00:09.2]} 40... Qc4 {[%clk 0:00:55.4]} 41. Ree3 {[%clk 0:00:03.8]}
41... a5 {[%clk 0:00:55.5]} 0-1

[Event "*** Titled Tuesday 3|2 Blitz"]
[Site "Chess.com"]
[Date "2014.12.30"]
[Round "6"]
[White "ameet100"]
[Black "davopetr"]
[Result "0-1"]
[WhiteElo "2406"]
[BlackElo "2572"]
[TimeControl "180+2"]
[EndTime "12:17:55 PST"]
[Termination "davopetr won by checkmate"]

1. Nf3 {[%clk 0:03:00]} 1... Nf6 {[%clk 0:02:58.7]} 2. g3 {[%clk 0:03:01.4]}
2... g6 {[%clk 0:03:00.6]} 3. Bg2 {[%clk 0:03:03]} 3... Bg7 {[%clk 0:03:02.3]}
4. O-O {[%clk 0:03:04.8]} 4... O-O {[%clk 0:03:04]} 5. d4 {[%clk 0:03:05.9]}
5... d6 {[%clk 0:03:05]} 6. c4 {[%clk 0:03:06.6]} 6... c6 {[%clk 0:03:06.4]} 7.
Nc3 {[%clk 0:03:07.6]} 7... Qb6 {[%clk 0:03:07.4]} 8. h3 {[%clk 0:02:38.8]} 8...
Qa6 {[%clk 0:03:04.4]} 9. Nd2 {[%clk 0:02:39]} 9... Nbd7 {[%clk 0:03:00.8]} 10.
b3 {[%clk 0:02:27.4]} 10... Rb8 {[%clk 0:03:00.5]} 11. a4 {[%clk 0:02:19.3]}
11... b5 {[%clk 0:02:58.2]} 12. cxb5 {[%clk 0:01:49.4]} 12... cxb5 {[%clk
0:02:59]} 13. Bb2 {[%clk 0:01:51]} 13... b4 {[%clk 0:02:56.3]} 14. Nb5 {[%clk
0:01:51.1]} 14... Bb7 {[%clk 0:02:37.4]} 15. e4 {[%clk 0:01:35.4]} 15... Rbc8
{[%clk 0:02:36.1]} 16. Re1 {[%clk 0:01:32.7]} 16... d5 {[%clk 0:02:23.1]} 17. e5
{[%clk 0:01:20.2]} 17... Ne4 {[%clk 0:02:24.1]} 18. Nxe4 {[%clk 0:00:42.6]}
18... dxe4 {[%clk 0:02:24]} 19. Bf1 {[%clk 0:00:40.2]} 19... Qa5 {[%clk
0:02:15.6]} 20. Qg4 {[%clk 0:00:31.2]} 20... Nb6 {[%clk 0:02:05.7]} 21. Rac1
{[%clk 0:00:25.6]} 21... Rfd8 {[%clk 0:01:38.6]} 22. h4 {[%clk 0:00:19.7]} 22...
a6 {[%clk 0:01:35.8]} 23. Na7 {[%clk 0:00:20.5]} 23... Rxc1 {[%clk 0:01:32.8]}
24. Rxc1 {[%clk 0:00:22.2]} 24... Qd5 {[%clk 0:01:28.1]} 25. Bc4 {[%clk
0:00:09]} 25... Nxc4 {[%clk 0:01:28.7]} 26. bxc4 {[%clk 0:00:10.4]} 26... Qa5
{[%clk 0:01:17.3]} 27. d5 {[%clk 0:00:10.6]} 27... Qc5 {[%clk 0:01:08.7]} 28.
Nc6 {[%clk 0:00:05.8]} 28... Bxc6 {[%clk 0:01:09.2]} 29. dxc6 {[%clk 0:00:07.4]}
29... Qxc6 {[%clk 0:01:03.5]} 30. Rd1 {[%clk 0:00:08.8]} 30... Rd3 {[%clk
0:00:54.7]} 31. c5 {[%clk 0:00:05.5]} 31... Qxc5 {[%clk 0:00:50]} 32. Rc1 {[%clk
0:00:05]} 32... Qd5 {[%clk 0:00:40.8]} 33. Rc8+ {[%clk 0:00:05.9]} 33... Bf8
{[%clk 0:00:42.1]} 34. Qf4 {[%clk 0:00:06.8]} 34... Rd1+ {[%clk 0:00:39.2]} 35.
Kh2 {[%clk 0:00:08.1]} 35... e3 {[%clk 0:00:40.8]} 36. Qh6 {[%clk 0:00:03.1]}
36... Qh1# {[%clk 0:00:39.3]} 0-1